fUST/lending_fUST_20250624
["ID","MTS","AMOUNT","RATE_DAILY","PERIOD"]
[367375130,1750773041422,-460.0,0.00019178,2]
[367375131,1750773041431,-646.29,0.00019178,2]
[367375132,1750773041440,-460.0,0.00019178,2]
[367375133,1750773041450,-865.54,0.00019178,2]
[367375134,1750773041459,-460.0,0.00019178,2]
[367375135,1750773041468,-460.0,0.00019178,2]
[367375136,1750773041481,-460.0,0.00019178,2]
[367375137,1750773041491,-460.0,0.00019178,2]
[367375138,1750773041501,-460.0,0.00019178,2]
[367375139,1750773041510,-460.0,0.00019178,2]
[367375140,1750773041520,-624.47,0.00019178,2]
[367375141,1750773041530,-922.07,0.00019178,2]
[367375142,1750773041539,-460.0,0.00019178,2]
[367375143,1750773041549,-1025.36,0.00019178,2]
[367375144,1750773041558,-1031.22,0.00019178,2]
[367375145,1750773041567,-414.38435028,0.00019178,2]
[367375146,1750773041577,-511.38,0.00019178,2]
[367375147,1750773041587,-460.0,0.00019178,2]
[367375148,1750773041596,-865.31,0.00019178,2]
[367375149,1750773041606,-460.0,0.00019178,2]
[367375150,1750773041615,-460.0,0.00019178,2]
[367375151,1750773041625,-460.0,0.00019178,2]
[367375152,1750773041635,-682.93,0.00019178,2]
[367375153,1750773041645,-460.0,0.00019178,2]
[367375154,1750773041654,-460.0,0.00019178,2]
[367375155,1750773041664,-460.0,0.00019178,2]
[367375156,1750773041674,-460.0,0.00019178,2]
[367375157,1750773041684,-460.0,0.00019178,2]
[367375158,1750773041693,-460.0,0.00019178,2]
[367375159,1750773041703,-746.16,0.00019178,2]
[367375160,1750773041713,-889.38,0.00019178,2]
[367375161,1750773041723,-5572.3,0.00019178,2]
[367375162,1750773041732,-460.0,0.00019178,2]
[367375163,1750773041742,-460.0,0.00019178,2]
[367375164,1750773041752,-460.0,0.00019178,2]
[367375165,1750773041762,-460.0,0.00019178,2]
[367375166,1750773041773,-460.0,0.00019178,2]
[367375167,1750773041783,-2640.22,0.00019178,2]
[367375168,1750773041793,-188.0,0.00019187,2]
[367375169,1750773041803,-2907.0,0.00019188,2]
[367375170,1750773041813,-188.0,0.0001926,2]
[367375171,1750773041822,-188.0,0.00019314,2]
[367375172,1750773041832,-1157.0,0.00019323,2]
[367375173,1750773041841,-912.45846024,0.00019339,2]
[367375174,1750773041851,-188.0,0.00019348,2]
[367375175,1750773041860,-188.0,0.00019402,2]
[367375176,1750773041870,-500.0,0.00019425,2]
[367375177,1750773041880,-151.0,0.00019425,2]
[367375178,1750773041890,-460.0,0.00019451,2]
[367375179,1750773041900,-840.98,0.00019451,2]
[367375180,1750773041909,-811.21,0.00019451,2]
[367375181,1750773041919,-2537.47,0.00019451,2]
[367375182,1750773041929,-906.6,0.00019451,2]
[367375183,1750773041938,-460.0,0.00019451,2]
[367375184,1750773041950,-460.0,0.00019451,2]
[367375185,1750773041959,-460.0,0.00019451,2]
[367375186,1750773041969,-460.0,0.00019451,2]
[367375187,1750773041978,-2258.9,0.00019451,2]
[367375188,1750773041988,-460.0,0.00019451,2]
[367375189,1750773041997,-1644.13,0.00019451,2]
[367375190,1750773042208,-2069.01,0.00019451,2]
[367375191,1750773042218,-460.0,0.00019451,2]
[367375192,1750773042227,-460.0,0.00019452,2]
[367375193,1750773042237,-460.0,0.00019452,2]
[367375194,1750773042246,-460.0,0.00019452,2]
[367375195,1750773042256,-511.17,0.00019452,2]
[367375196,1750773042266,-460.0,0.00019452,2]
[367375197,1750773042276,-495.77463313,0.00019452,2]
[367375198,1750773042286,-460.0,0.00019452,2]
[367375199,1750773042295,-460.0,0.00019452,2]
[367375200,1750773042305,-460.0,0.00019452,2]
[367375201,1750773042315,-588.33,0.00019452,2]
[367375202,1750773042324,-460.0,0.00019452,2]
[367375203,1750773042334,-460.0,0.00019452,2]
[367375204,1750773042343,-227.63104084,0.00019452,2]
[367375205,1750773042352,-460.0,0.00019452,2]
[367375206,1750773042362,-460.0,0.00019452,2]
[367375207,1750773042371,-460.0,0.00019452,2]
[367375208,1750773042383,-203.06451164,0.00019452,2]
[367375209,1750773042392,-460.0,0.00019452,2]
[367375210,1750773042401,-460.0,0.00019452,2]
[367375211,1750773042411,-460.0,0.00019452,2]
[367375212,1750773042420,-460.0,0.00019452,2]
[367375213,1750773042430,-460.0,0.00019452,2]
[367375214,1750773042438,-460.0,0.00019452,2]
[367375215,1750773042448,-460.0,0.00019452,2]
[367375216,1750773042457,-460.0,0.00019452,2]
[367375217,1750773042466,-460.0,0.00019452,2]
[367375218,1750773042476,-460.0,0.00019452,2]
[367375219,1750773042486,-460.0,0.00019452,2]
[367375220,1750773042495,-460.0,0.00019452,2]
[367375221,1750773042504,-460.0,0.00019452,2]
[367375222,1750773042514,-521.74,0.00019452,2]
[367375223,1750773042523,-460.0,0.00019452,2]
[367375224,1750773042532,-460.0,0.00019452,2]
[367375225,1750773042542,-460.0,0.00019452,2]
[367375226,1750773042551,-1219.06,0.00019452,2]
[367375227,1750773042560,-460.0,0.00019452,2]
[367375228,1750773042569,-460.0,0.00019452,2]
[367375229,1750773042579,-460.0,0.00019452,2]
[367375230,1750773042588,-460.0,0.00019452,2]
[367375231,1750773042597,-460.0,0.00019452,2]
[367375232,1750773042606,-460.0,0.00019452,2]
[367375233,1750773042615,-460.0,0.00019452,2]
[367375234,1750773042624,-460.0,0.00019452,2]
[367375235,1750773042635,-649.25,0.00019452,2]
[367375236,1750773042645,-751.59,0.00019452,2]
[367375237,1750773042654,-460.0,0.00019452,2]
[367375238,1750773042663,-460.0,0.00019452,2]
[367375239,1750773042672,-460.0,0.00019452,2]
[367375240,1750773042681,-460.0,0.00019452,2]
[367375241,1750773042690,-460.0,0.00019452,2]
[367375242,1750773042699,-460.0,0.00019452,2]
[367375243,1750773042708,-460.0,0.00019452,2]
[367375244,1750773042717,-460.0,0.00019452,2]
[367375245,1750773042727,-255.46738044,0.00019452,2]
[367375246,1750773042736,-158.78988517,0.00019452,2]
[367375247,1750773042745,-280.28922674,0.00019452,2]
[367375248,1750773042755,-460.0,0.00019452,2]
[367375249,1750773042764,-265.46,0.00019452,2]
[367375250,1750773042776,-460.0,0.00019452,2]
[367375251,1750773042795,-460.0,0.00019452,2]
[367375252,1750773042805,-460.0,0.00019452,2]
[367375253,1750773042816,-397.03109468,0.00019452,2]
[367375254,1750773042826,-460.0,0.00019452,2]
[367375255,1750773042836,-460.0,0.00019452,2]
[367375256,1750773042848,-460.0,0.00019452,2]
[367375257,1750773042859,-460.0,0.00019452,2]
[367375258,1750773042868,-460.0,0.00019452,2]
[367375259,1750773042880,-460.0,0.00019452,2]
[367375260,1750773042891,-500.0,0.00019452,2]
[367375261,1750773042901,-949.43,0.00019452,2]
[367375262,1750773042911,-460.0,0.00019452,2]
[367375263,1750773042921,-2869.34,0.00019452,2]
[367375264,1750773042931,-460.0,0.00019452,2]
[367375265,1750773042941,-586.63930632,0.00019452,2]
[367375266,1750773042951,-460.0,0.00019452,2]
[367375267,1750773042960,-356.56236052,0.00019452,2]
[367375268,1750773042971,-460.0,0.00019452,2]
[367375269,1750773042981,-460.0,0.00019452,2]
[367375270,1750773042991,-460.0,0.00019452,2]
[367375271,1750773043000,-460.0,0.00019452,2]
[367375272,1750773043009,-460.0,0.00019452,2]
[367375273,1750773043019,-504.23,0.00019452,2]
[367375274,1750773043028,-460.0,0.00019452,2]
[367375275,1750773043037,-1216.52,0.00019452,2]
[367375276,1750773043046,-765.24,0.00019452,2]
[367375277,1750773043055,-3308.65,0.00019452,2]
[367375278,1750773043064,-2573.27,0.00019452,2]
[367375279,1750773043074,-460.0,0.00019452,2]
[367375280,1750773043084,-493.59,0.00019452,2]
[367375281,1750773043093,-839.11,0.00019452,2]
[367375282,1750773043102,-460.0,0.00019452,2]
[367375283,1750773043112,-460.0,0.00019452,2]
[367375284,1750773043122,-1047.97,0.00019452,2]
[367375285,1750773043134,-1342.61,0.00019452,2]
[367375286,1750773043144,-460.0,0.00019452,2]
[367375287,1750773043153,-820.72,0.00019452,2]
[367375288,1750773043163,-460.0,0.00019452,2]
[367375289,1750773043173,-460.0,0.00019452,2]
[367375290,1750773043183,-460.0,0.00019452,2]
[367375291,1750773043192,-460.0,0.00019452,2]
[367375292,1750773043202,-1987.34,0.00019452,2]
[367375293,1750773043211,-460.0,0.00019452,2]
[367375294,1750773043221,-484.73,0.00019452,2]
[367375295,1750773043230,-460.0,0.00019452,2]
[367375296,1750773043239,-460.0,0.00019452,2]
[367375297,1750773043249,-460.0,0.00019452,2]
[367375298,1750773043258,-460.0,0.00019452,2]
[367375299,1750773043268,-460.0,0.00019452,2]
[367375300,1750773043277,-460.0,0.00019452,2]
[367375301,1750773043287,-657.96,0.00019452,2]
[367375302,1750773043296,-460.0,0.00019452,2]
[367375303,1750773043306,-2154.19,0.00019452,2]
[367375304,1750773043315,-460.0,0.00019452,2]
[367375305,1750773043325,-1898.22,0.00019452,2]
[367375306,1750773043334,-389.23,0.00019452,2]
[367375308,1750773043344,-460.0,0.00019452,2]
[367375310,1750773043354,-460.0,0.00019452,2]
[367375313,1750773043363,-460.0,0.00019452,2]
[367375315,1750773043372,-3404.81,0.00019452,2]
[367375317,1750773043382,-478.16,0.00019452,2]
[367375319,1750773043392,-492.0,0.00019452,2]
[367375321,1750773043401,-460.0,0.00019452,2]
[367375324,1750773043411,-460.0,0.00019452,2]
[367375327,1750773043420,-460.0,0.00019452,2]
[367375329,1750773043430,-812.72,0.00019452,2]
[367375331,1750773043439,-460.0,0.00019452,2]
[367375332,1750773043448,-460.0,0.00019452,2]
[367375333,1750773043457,-460.0,0.00019452,2]
[367375334,1750773043467,-460.0,0.00019452,2]
[367375335,1750773043476,-409.01108323,0.00019452,2]
[367375336,1750773043485,-1177.39,0.00019452,2]
[367375337,1750773043495,-460.0,0.00019452,2]
[367375338,1750773043504,-1506.99,0.00019452,2]
[367375339,1750773043513,-3803.75,0.00019452,2]
[367375340,1750773043522,-460.0,0.00019452,2]
[367375341,1750773043531,-640.91,0.00019452,2]
[367375342,1750773043540,-460.0,0.00019452,2]
[367375343,1750773043549,-646.29,0.00019452,2]
[367375344,1750773043559,-865.54,0.00019452,2]
[367375345,1750773043569,-460.0,0.00019452,2]
[367375346,1750773043578,-460.0,0.00019452,2]
[367375347,1750773043588,-460.0,0.00019452,2]
[367375348,1750773043597,-460.0,0.00019452,2]
[367375349,1750773043607,-396.56,0.00019452,2]
[367375350,1750773043616,-460.0,0.00019452,2]
[367375351,1750773043626,-624.47,0.00019452,2]
[367375352,1750773043637,-922.07,0.00019452,2]
[367375353,1750773043647,-460.0,0.00019452,2]
[367375354,1750773043656,-1025.36,0.00019452,2]
[367375355,1750773043666,-1031.22,0.00019452,2]
[367375356,1750773043676,-511.38,0.00019452,2]
[367375357,1750773043686,-460.0,0.00019452,2]
[367375358,1750773043696,-865.31,0.00019452,2]
[367375359,1750773043707,-460.0,0.00019452,2]
[367375360,1750773043718,-460.0,0.00019452,2]
[367375361,1750773043727,-682.93,0.00019452,2]
[367375362,1750773043736,-460.0,0.00019452,2]
[367375363,1750773043745,-460.0,0.00019452,2]
[367375364,1750773043755,-460.0,0.00019452,2]
[367375365,1750773043764,-460.0,0.00019452,2]
[367375366,1750773043775,-460.0,0.00019452,2]
[367375367,1750773043784,-746.16,0.00019452,2]
[367375368,1750773043794,-889.38,0.00019452,2]
[367375369,1750773043804,-5572.3,0.00019452,2]
[367375370,1750773043814,-460.0,0.00019452,2]
[367375371,1750773043824,-455.88893735,0.00019452,2]
[367375372,1750773043835,-460.0,0.00019452,2]
[367375373,1750773043845,-2640.22,0.00019452,2]
[367375374,1750773043858,-500.0,0.00019452,2]
[367375375,1750773043867,-151.0,0.00019452,2]
[367375376,1750773043877,-2907.0,0.00019464,2]
[367375377,1750773043888,-500.0,0.0001948,2]
[367375378,1750773043898,-198.0,0.0001948,2]
[367375379,1750773043907,-3620.89464056,0.00019489,2]
[367375380,1750773043917,-500.0,0.00019507,2]
[367375381,1750773043926,-500.0,0.00019535,2]
[367375382,1750773043936,-500.0,0.00019562,2]
[367375383,1750773043945,-179.92802879,0.00019579,2]
[367375384,1750773043956,-500.0,0.00019589,2]
[367375385,1750773043966,-365.9458251,0.000196,2]
[367375386,1750773043975,-500.0,0.00019617,2]
[367375387,1750773043985,-500.0,0.00019644,2]
[367375388,1750773043995,-616.78661871,0.00019672,2]
[367375389,1750773044004,-5000.0,0.00019714,2]
[367375390,1750773044014,-202.0745463,0.00019716,2]
[367375391,1750773044024,-460.0,0.00019725,2]
[367375392,1750773044033,-840.98,0.00019725,2]
[367375393,1750773044045,-811.21,0.00019725,2]
[367375394,1750773044054,-2537.47,0.00019725,2]
[367375397,1750773044064,-906.6,0.00019725,2]
[367375399,1750773044073,-460.0,0.00019725,2]
[367375400,1750773044082,-460.0,0.00019725,2]
[367375401,1750773044091,-2258.9,0.00019725,2]
[367375402,1750773044101,-460.0,0.00019725,2]
[367375403,1750773044110,-1644.13,0.00019725,2]
[367375404,1750773044120,-2069.01,0.00019725,2]
[367375405,1750773044129,-460.0,0.00019725,2]
[367375406,1750773044139,-460.0,0.00019726,2]
[367375407,1750773044148,-185.24481457,0.00019726,2]
[367375408,1750773044158,-460.0,0.00019726,2]
[367375409,1750773044168,-460.0,0.00019726,2]
[367375410,1750773044178,-460.0,0.00019726,2]
[367375411,1750773044187,-460.0,0.00019726,2]
[367375412,1750773044197,-460.0,0.00019726,2]
[367375414,1750773044206,-460.0,0.00019726,2]
[367375415,1750773044215,-460.0,0.00019726,2]
[367375416,1750773044225,-460.0,0.00019726,2]
[367375418,1750773044234,-460.0,0.00019726,2]
[367375419,1750773044244,-570.83542155,0.00019726,2]
[367375420,1750773044253,-460.0,0.00019726,2]
[367375421,1750773044263,-460.0,0.00019726,2]
[367375422,1750773044272,-460.0,0.00019726,2]
[367375423,1750773044282,-460.0,0.00019726,2]
[367375425,1750773044291,-460.0,0.00019726,2]
[367375427,1750773044301,-1219.06,0.00019726,2]
[367375428,1750773044311,-460.0,0.00019726,2]
[367375429,1750773044321,-594.48,0.00019726,2]
[367375430,1750773044330,-514.68,0.00019726,2]
[367375431,1750773044340,-460.0,0.00019726,2]
[367375432,1750773044350,-649.25,0.00019726,2]
[367375433,1750773044359,-751.59,0.00019726,2]
[367375434,1750773044369,-460.0,0.00019726,2]
[367375435,1750773044378,-460.0,0.00019726,2]
[367375436,1750773044388,-460.0,0.00019726,2]
[367375437,1750773044398,-460.0,0.00019726,2]
[367375438,1750773044408,-460.0,0.00019726,2]
[367375439,1750773044417,-460.0,0.00019726,2]
[367375440,1750773044427,-460.0,0.00019726,2]
[367375441,1750773044437,-454.74908266,0.00019726,2]
[367375442,1750773044446,-460.0,0.00019726,2]
[367375443,1750773044456,-500.77098629,0.00019726,2]
[367375444,1750773044465,-460.0,0.00019726,2]
[367375445,1750773044474,-460.0,0.00019726,2]
[367375446,1750773044483,-460.0,0.00019726,2]
[367375447,1750773044493,-609.27327585,0.00019726,2]
[367375448,1750773044502,-949.43,0.00019726,2]
[367375449,1750773044511,-460.0,0.00019726,2]
[367375450,1750773044521,-2869.34,0.00019726,2]
[367375451,1750773044530,-460.0,0.00019726,2]
[367375452,1750773044540,-370.76392313,0.00019726,2]
[367375453,1750773044550,-504.23,0.00019726,2]
[367375454,1750773044559,-460.0,0.00019726,2]
[367375455,1750773044569,-1216.52,0.00019726,2]
[367375457,1750773044578,-765.24,0.00019726,2]
[367375458,1750773044588,-3308.65,0.00019726,2]
[367375459,1750773044597,-2573.27,0.00019726,2]
[367375460,1750773044607,-839.11,0.00019726,2]
[367375461,1750773044616,-448.46,0.00019726,2]
[367375462,1750773044626,-460.0,0.00019726,2]
[367375463,1750773044636,-1047.97,0.00019726,2]
[367375464,1750773044646,-1342.61,0.00019726,2]
[367375465,1750773044655,-356.63996205,0.00019726,2]
[367375466,1750773044665,-820.72,0.00019726,2]
[367375467,1750773044674,-460.0,0.00019726,2]
[367375468,1750773044684,-460.0,0.00019726,2]
[367375469,1750773044693,-1987.34,0.00019726,2]
[367375470,1750773044703,-460.0,0.00019726,2]
[367375471,1750773044712,-484.73,0.00019726,2]
[367375472,1750773044721,-460.0,0.00019726,2]
[367375473,1750773044731,-460.0,0.00019726,2]
[367375474,1750773044740,-460.0,0.00019726,2]
[367375475,1750773044749,-460.0,0.00019726,2]
[367375476,1750773044762,-597.17,0.00019726,2]
[367375477,1750773044773,-657.96,0.00019726,2]
[367375478,1750773044785,-460.0,0.00019726,2]
[367375479,1750773044794,-2154.19,0.00019726,2]
[367375480,1750773044804,-460.0,0.00019726,2]
[367375481,1750773044815,-1898.22,0.00019726,2]
[367375482,1750773044826,-460.0,0.00019726,2]
[367375483,1750773044835,-460.0,0.00019726,2]
[367375484,1750773044847,-460.0,0.00019726,2]
[367375485,1750773044858,-3404.81,0.00019726,2]
[367375486,1750773044867,-492.0,0.00019726,2]
[367375487,1750773044878,-460.0,0.00019726,2]
[367375488,1750773044888,-460.0,0.00019726,2]
[367375489,1750773044898,-460.0,0.00019726,2]
[367375490,1750773044909,-812.72,0.00019726,2]
[367375491,1750773044920,-460.0,0.00019726,2]
[367375492,1750773044929,-460.0,0.00019726,2]
[367375493,1750773044939,-460.0,0.00019726,2]
[367375494,1750773044949,-514.41,0.00019726,2]
[367375495,1750773044959,-1177.39,0.00019726,2]
[367375496,1750773044968,-460.0,0.00019726,2]
[367375497,1750773044978,-1506.99,0.00019726,2]
[367375498,1750773044988,-3803.75,0.00019726,2]
[367375499,1750773044999,-460.0,0.00019726,2]
[367375500,1750773045010,-460.0,0.00019726,2]
[367375501,1750773045019,-640.91,0.00019726,2]
[367375502,1750773045030,-646.29,0.00019726,2]
[367375503,1750773045040,-865.54,0.00019726,2]
[367375504,1750773045050,-460.0,0.00019726,2]
[367375505,1750773045059,-460.0,0.00019726,2]
[367375506,1750773045069,-624.47,0.00019726,2]
[367375507,1750773045078,-460.0,0.00019726,2]
[367375508,1750773045088,-922.07,0.00019726,2]
[367375509,1750773045098,-1025.36,0.00019726,2]
[367375510,1750773045108,-1031.22,0.00019726,2]
[367375511,1750773045118,-511.38,0.00019726,2]
[367375512,1750773045128,-460.0,0.00019726,2]
[367375513,1750773045138,-865.31,0.00019726,2]
[367375514,1750773045148,-460.0,0.00019726,2]
[367375515,1750773045158,-460.0,0.00019726,2]
[367375516,1750773045168,-682.93,0.00019726,2]
[367375517,1750773045178,-460.0,0.00019726,2]
[367375518,1750773045188,-460.0,0.00019726,2]
[367375519,1750773045197,-460.0,0.00019726,2]
[367375520,1750773045207,-460.0,0.00019726,2]
[367375521,1750773045217,-380.0,0.00019726,2]
[367375522,1750773045226,-746.16,0.00019726,2]
[367375523,1750773045236,-889.38,0.00019726,2]
[367375524,1750773045245,-5572.3,0.00019726,2]
[367375525,1750773045255,-460.0,0.00019726,2]
[367375526,1750773045265,-2640.22,0.00019726,2]
[367375527,1750773045274,-374.20026302,0.00019735,2]
[367375528,1750773045284,-500.0,0.00019764,2]
[367375529,1750773045293,-500.0,0.00019764,2]
[367375530,1750773045303,-500.0,0.00019764,2]
[367375531,1750773045312,-500.0,0.00019764,2]
[367375532,1750773045321,-500.0,0.00019767,2]
[367375533,1750773045331,-500.0,0.00019767,2]
[367375534,1750773045340,-500.0,0.00019767,2]
[367375535,1750773045350,-500.0,0.00019773,2]
[367375536,1750773045360,-1000.0,0.0001978,2]
[367375537,1750773045369,-500.0,0.00019783,2]
[367375538,1750773045379,-500.0,0.00019783,2]
[367375539,1750773045388,-500.0,0.00019783,2]
[367375540,1750773045398,-500.0,0.00019783,2]
[367375541,1750773045407,-500.0,0.00019783,2]
[367375542,1750773045416,-500.0,0.00019784,2]
[367375543,1750773045426,-500.0,0.00019784,2]
[367375544,1750773045436,-500.0,0.00019784,2]
[367375545,1750773045445,-500.0,0.00019784,2]
[367375546,1750773045455,-583.34115106,0.00019784,2]
[367375547,1750773045464,-500.0,0.00019784,2]
[367375548,1750773045474,-500.0,0.00019784,2]
[367375549,1750773045483,-500.0,0.00019784,2]
[367375550,1750773045493,-500.0,0.00019784,2]
[367375551,1750773045502,-500.0,0.00019784,2]
[367375552,1750773045512,-447.5731237,0.00019784,2]
[367375553,1750773045521,-500.0,0.00019788,2]
[367375554,1750773045531,-500.0,0.00019788,2]
[367375555,1750773045540,-500.0,0.00019788,2]
[367375556,1750773045549,-500.0,0.00019788,2]
[367375557,1750773045559,-429.82093682,0.00019788,2]
[367375558,1750773045567,-500.0,0.00019788,2]
[367375559,1750773045577,-232.72454134,0.00019788,2]
[367375560,1750773045586,-500.0,0.00019788,2]
[367375561,1750773045596,-416.06737292,0.00019788,2]
[367375562,1750773045605,-500.0,0.00019788,2]
[367375563,1750773045615,-500.0,0.00019788,2]
[367375564,1750773045624,-500.0,0.00019788,2]
[367375565,1750773045634,-500.0,0.00019788,2]
[367375566,1750773045644,-159.1692736,0.00019817,2]
[367375567,1750773045653,-318.3385472,0.00019817,2]
[367375568,1750773045662,-159.1692736,0.00019817,2]
[367375569,1750773045672,-574.8597778,0.00019817,2]
[367375570,1750773045681,-159.1692736,0.00019817,2]
[367375571,1750773045691,-574.8597778,0.00019817,2]
[367375572,1750773045700,-177.3826656,0.00019817,2]
[367375573,1750773045710,-574.8597778,0.00019817,2]
[367375574,1750773045719,-177.3826656,0.00019817,2]
[367375575,1750773045729,-574.8597778,0.00019817,2]
[367375576,1750773045738,-159.1692736,0.00019817,2]
[367375577,1750773045748,-574.8597778,0.00019817,2]
[367375578,1750773045903,-177.3826656,0.00019817,2]
[367375579,1750773045930,-574.8597778,0.00019817,2]
[367375580,1750773045940,-177.3826656,0.00019817,2]
[367375581,1750773045950,-574.8597778,0.00019817,2]
[367375582,1750773045960,-162.774851,0.00019817,2]
[367375583,1750773045970,-159.1692736,0.00019817,2]
[367375584,1750773045979,-353.6040947,0.00019817,2]
[367375585,1750773045988,-1157.0,0.00019818,2]
[367375586,1750773045997,-500.0,0.00019829,2]
[367375587,1750773046007,-365.9458251,0.00019829,2]
[367375588,1750773046017,-365.9458251,0.00019829,2]
[367375589,1750773046026,-364.8839322,0.00019829,2]
[367375590,1750773046036,-1527.907814,0.00019889,2]
[367375591,1750773046045,-500.0,0.00019893,2]
[367375592,1750773046055,-500.0,0.00019893,2]
[367375593,1750773046064,-3620.89464056,0.000199,2]
[367375594,1750773046073,-304.4823122,0.000199,2]
[367375595,1750773046083,-200.0,0.0001992,2]
[367375596,1750773046092,-500.0,0.00019969,2]
[367375597,1750773046102,-510.86747445,0.00019969,2]
[367375598,1750773046111,-100000.0,0.0001999,2]
[367375599,1750773046121,-460.0,0.00019999,2]
[367375600,1750773046131,-840.98,0.00019999,2]
[367375601,1750773046141,-811.21,0.00019999,2]
[367375602,1750773046150,-2537.47,0.00019999,2]
[367375603,1750773046160,-906.6,0.00019999,2]
[367375604,1750773046169,-460.0,0.00019999,2]
[367375605,1750773046178,-460.0,0.00019999,2]
[367375606,1750773046187,-2258.9,0.00019999,2]
[367375607,1750773046196,-460.0,0.00019999,2]
[367375608,1750773046206,-1644.13,0.00019999,2]
[367375609,1750773046216,-2069.01,0.00019999,2]
[367375610,1750773046225,-552.79,0.0002,2]
[367375611,1750773046235,-460.0,0.0002,2]
[367375612,1750773046244,-460.0,0.0002,2]
[367375613,1750773046253,-460.0,0.0002,2]
[367375614,1750773046262,-596.8273426,0.0002,2]
[367375616,1750773046272,-460.0,0.0002,2]
[367375617,1750773046282,-460.0,0.0002,2]
[367375618,1750773046291,-460.0,0.0002,2]
[367375619,1750773046300,-460.0,0.0002,2]
[367375620,1750773046310,-460.0,0.0002,2]
[367375621,1750773046319,-1219.06,0.0002,2]
[367375622,1750773046328,-460.0,0.0002,2]
[367375623,1750773046337,-649.25,0.0002,2]
[367375624,1750773046345,-751.59,0.0002,2]
[367375625,1750773046355,-460.0,0.0002,2]
[367375626,1750773046364,-460.0,0.0002,2]
[367375627,1750773046374,-460.0,0.0002,2]
[367375630,1750773046385,-460.0,0.0002,2]
[367375632,1750773046395,-460.0,0.0002,2]
[367375634,1750773046404,-460.0,0.0002,2]
[367375636,1750773046414,-460.0,0.0002,2]
[367375638,1750773046423,-460.0,0.0002,2]
[367375639,1750773046432,-460.0,0.0002,2]
[367375642,1750773046441,-949.43,0.0002,2]
[367375644,1750773046451,-460.0,0.0002,2]
[367375646,1750773046459,-2869.34,0.0002,2]
[367375648,1750773046469,-504.23,0.0002,2]
[367375649,1750773046478,-460.0,0.0002,2]
[367375650,1750773046487,-1216.52,0.0002,2]
[367375651,1750773046496,-765.24,0.0002,2]
[367375653,1750773046505,-3308.65,0.0002,2]
[367375654,1750773046515,-2573.27,0.0002,2]
[367375655,1750773046524,-839.11,0.0002,2]
[367375656,1750773046533,-460.0,0.0002,2]
[367375657,1750773046542,-1047.97,0.0002,2]
[367375658,1750773046552,-1342.61,0.0002,2]
[367375659,1750773046561,-820.72,0.0002,2]
[367375660,1750773046571,-460.0,0.0002,2]
[367375661,1750773046580,-1987.34,0.0002,2]
[367375662,1750773046590,-169.59,0.0002,2]
[367375663,1750773046599,-484.73,0.0002,2]
[367375664,1750773046608,-460.0,0.0002,2]